Workbook

Sheet 6 .09
A1: Школа | B1: - | E1: Отд./корп | I1: День | J1: 2021-09-06
A3: Прием пищи | B3: Раздел | C3: № рец. | D3: Блюдо | E3: Выход, г | F3: Цена | G3: Калорийность | H3: Белки | I3: Жиры | J3: Углеводы
A4: Завтрак | C4: ДО7ИС20 | D4: Сыр порционно | E4: 10 | G4: 40.8 | H4: 3 | I4: 1 | J4: 1.6
C5: ТК № 302 | D5: Каша "Дружба" | E5: 200 | G5: 232 | H5: 6.27 | I5: 8.13 | J5: 33.47
C6: ДО5МП18 | D6: Чай с сахаром | E6: 200 | G6: 35 | H6: 0.1 | I6: 0.02 | J6: 9.9
C7: СПРЕБРЖ | D7: Хлеб пшенично -ржаной | E7: 30 | G7: 69 | H7: 3.28 | I7: 0.9 | J7: 12.48
D8: Фрукт (яблоко) | E8: 75 | G8: 35 | H8: 0.3 | I8: 0.3 | J8: 7.35
A9: Завтрак 2
F11: 57.43 | G11: =SUM(G4:G10) -> 412 | H11: =SUM(H4:H10) -> 13 | I11: 10 | J11: 65
A12: Обед | C12: ДО7АД19 | D12: Салат из моркови | E12: 40 | G12: 40 | H12: 0.4 | I12: 1.8 | J12: 5.8
C13: ДО7АА19 | D13: Суп картоф. с пшенной крупой | E13: 200 | G13: 244 | H13: 1.73 | I13: 10.67 | J13: 25.33
C14: ДО7ЕВ19 | D14: Каша гречневая рассыпчатая | E14: 150 | G14: 179 | H14: 6.72 | I14: 4.32 | J14: 27.68
C15: ТК№97 | D15: Котлеты куриные, соус | E15: 60/25 | G15: 145 | H15: 12.08 | I15: 6.18 | J15: 10.15
C16: ТК № 295 | D16: Чай с сахаром | E16: 200 | G16: 35 | H16: 0.1 | I16: 0.02 | J16: 9.9
C17: СПРЕБРЖ | D17: Хлеб пшенично -ржаной | E17: 50 | G17: 121 | H17: 5.7 | I17: 1.55 | J17: 21.57
G18: =SUM(G12:G17) -> 764 | H18: =SUM(H12:H17) -> 27 | I18: 25 | J18: 100
B20: итого | F20: 64.23 | G20: =G11+G18 -> 1176 | H20: =H11+H18 -> 40 | I20: 35 | J20: 165

Sheet 7.09
A1: Школа | B1: - | E1: Отд./корп | I1: День | J1: 2021-09-07
A3: Прием пищи | B3: Раздел | C3: № рец. | D3: Блюдо | E3: Выход, г | F3: Цена | G3: Калорийность | H3: Белки | I3: Жиры | J3: Углеводы
A4: Завтрак | C4: ТК№143 | D4: Птица тушеная с овощами | E4: 30/150 | G4: 253.8 | H4: 17.46 | I4: 11.61 | J4: 18.27
C5: ДО5МП18 | D5: Масло сливочное порционно | E5: 8 | G5: 62 | H5: 0.64 | I5: 0.64 | J5: 5.6
C6: ШО7ТЭШК | D6: Чай с молоком и сахаром | E6: 200 | G6: 75 | H6: 2 | I6: 5 | J6: 18
C7: СПРЕБРЖ | D7: Хлеб пшенично -ржаной | E7: 30 | G7: 69 | H7: 3.28 | I7: 0.9 | J7: 12.48
A9: Завтрак 2
F10: 57.43 | G10: =SUM(G4:G9) -> 460 | H10: =SUM(H4:H9) -> 23 | I10: 18 | J10: 54
A12: Обед | C12: ТК № 24 | D12: Салат из свеклы | E12: 40 | G12: 42 | H12: 0.5 | I12: 2.9 | J12: 3.2
C13: ДО7СПЕР | D13: Суп рыбный | E13: 200 | G13: 167 | H13: 6.32 | I13: 16 | J13: 22.01
C14: ДО7ЕЯ19 | D14: Макаронные изделия отварные | E14: 150 | G14: 196 | H14: 5.37 | I14: 4.25 | J14: 33.38
C15: ТК № 11 | D15: Тефтели из говядины | E15: 60/20 | G15: 196 | H15: 9.36 | I15: 12.96 | J15: 9.96
C16: ТК№77 | D16: Кисель | E16: 200 | G16: 80 | H16: 4 | I16: 0 | J16: 25
C17: СПРЕБРЖ | D17: Хлеб пшенично -ржаной | E17: 50 | G17: 121 | H17: 5.7 | I17: 1.55 | J17: 21.57
B20: итого | F20: 64.23 | G20: =G4+G5+G6+G7+G8+G12+G13+G14+G15+G16+G17 -> 1262 | H20: =H4+H5+H6+H7+H8+H12+H13+H14+H15+H16+H17 -> 55 | I20: 56 | J20: 169

Sheet 08.09
A1: Школа | B1: - | E1: Отд./корп | I1: День | J1: 2021-09-08
A3: Прием пищи | B3: Раздел | C3: № рец. | D3: Блюдо | E3: Выход, г | F3: Цена | G3: Калорийность | H3: Белки | I3: Жиры | J3: Углеводы
A4: Завтрак | C4: ТК№83 | D4: Каша гречневая рассыпчатая | E4: 150 | G4: 288 | H4: 10.4 | I4: 6.8 | J4: 45.4
C5: ТК №97 | D5: Гуляш из говядины | E5: 25/25 | G5: 99.5 | H5: 7.05 | I5: 7.1 | J5: 1.6
C6: ТК№304 | D6: Кофейный напиток на молоке | E6: 200 | G6: 94 | H6: 2.9 | I6: 2.8 | J6: 14.9
C7: СПРЕБРЖ | D7: Хлеб пшенично -ржаной | E7: 30 | G7: 69 | H7: 3.28 | I7: 0.9 | J7: 12.48
C8: **
A9: Завтрак 2
F10: 57.43
A12: Обед | C12: ТК№5 | D12: Салат из свежей капусты | E12: 40 | G12: 36 | H12: 0.9 | I12: 1.8 | J12: 4.1
C13: ДО7ДГ19 | D13: Рассольник ленинградский | E13: 200 | G13: 244 | H13: 1.73 | I13: 10.67 | J13: 25.13
C14: ДО7КБКК | D14: Фрикадельки из птицы в томат.соусе | E14: 60/25 | G14: 148 | H14: 8.76 | I14: 10.29 | J14: 5.14
C15: ТК № 170 | D15: Гороховое пюре | E15: 150 | G15: 240 | H15: 14.6 | I15: 5.1 | J15: 33.1
C16: ШО7ИЯ19 | D16: Напиток из плодов | E16: 200 | G16: 89 | H16: 0.2 | I16: 0.1 | J16: 23.5
C17: СПРЕБРЖ | D17: Хлеб пшенично -ржаной | E17: 50 | G17: 121 | H17: 5.7 | I17: 1.55 | J17: 21.57
B20: итого | F20: 64.23 | G20: =G4+G5+G6+G7+G8+G12+G13+G14+G15+G16+G17 -> 1429 | H20: =H4+H5+H6+H7+H8+H12+H13+H14+H15+H16+H17 -> 56 | I20: 47 | J20: 187

Sheet 09.09
A1: Школа | B1: - | E1: Отд./корп | I1: День | J1: 2021-09-09
A3: Прием пищи | B3: Раздел | C3: № рец. | D3: Блюдо | E3: Выход, г | F3: Цена | G3: Калорийность | H3: Белки | I3: Жиры | J3: Углеводы
A4: Завтрак | C4: ТК № 217 | D4: Макароны, запеченные с сыром | E4: 150 | G4: 236 | H4: 7.3 | I4: 11.8 | J4: 24.5
C5: ТК№302 | D5: Чай с лимоном | E5: 200 | G5: 37 | H5: 0.1 | I5: 0 | J5: 9.3
C6: ДО5МП18 | D6: Масло сливочное порционно | E6: 8 | G6: 62 | H6: 0.64 | I6: 0.64 | J6: 5.6
C7: СПРЕБРЖ | D7: Хлеб ржано - пшеничный витаминный | E7: 30 | G7: 69 | H7: 3.28 | I7: 0.9 | J7: 12.48
C8: 155.02 | D8: Йогурт | E8: 100 | G8: 120 | H8: 3 | I8: 3 | J8: 5
A9: Завтрак 2
F11: 57.43
A12: Обед | C12: ДО7АД19 | D12: Свекла отварная | E12: 40 | G12: 14 | H12: 0.6 | I12: 0 | J12: 2.9
C13: ДО7ДА19 | D13: Щи из св. капусты с картофелем | E13: 200 | G13: 244 | H13: 1.47 | I13: 9.33 | J13: 37.33
C14: ДО7КЛ19 | D14: Плов из птицы | E14: 25/125 | G14: 320 | H14: 14.2 | I14: 18.4 | J14: 23.7
C15: ШО7ИЯ19 | D15: Напиток из плодов | E15: 200 | G15: 89 | H15: 0.2 | I15: 0.1 | J15: 23.5
C16: СПРЕБРЖ | D16: Хлеб ржано - пшеничный витаминный | E16: 50 | G16: 121 | H16: 5.7 | I16: 1.55 | J16: 21.57
B20: итого | F20: 64.23 | G20: =G4+G5+G6+G7+G8+G12+G13+G14+G15+G16+G17 -> 1312 | H20: =H4+H5+H6+H7+H8+H12+H13+H14+H15+H16+H17 -> 36 | I20: 46 | J20: 166

Sheet 10.09
A1: Школа | B1: МБОУ СОШ с.Васильевка | E1: Отд./корп | I1: День | J1: 2021-09-10
A3: Прием пищи | B3: Раздел | C3: № рец. | D3: Блюдо | E3: Выход, г | F3: Цена | G3: Калорийность | H3: Белки | I3: Жиры | J3: Углеводы
A4: Завтрак | C4: ДО7БИ19 | D4: Биточки рыбные, соус | E4: 60/25 | G4: 134 | H4: 9.72 | I4: 6.84 | J4: 8.28
C5: ДО7ЕВ19 | D5: Картофельное пюре | E5: 150 | G5: 136 | H5: 3 | I5: 4.63 | J5: 20.13
C6: ШО7ИЯ19 | D6: Чай с сахаром | E6: 200 | G6: 35 | H6: 0.1 | I6: 0.02 | J6: 9.9
C7: СПРЕБРЖ | D7: Хлеб пшенично -ржаной | E7: 30 | G7: 69 | H7: 3.28 | I7: 0.9 | J7: 12.48
A9: Завтрак 2
F10: 57.43
A12: Обед | D12: Огурец свежий/соленый (термообработка) | E12: 40 | G12: 7 | H12: 0.32 | I12: 0.04 | J12: 0.76
C13: ДО7ДЛ19 | D13: Суп картофельный с бобовыми | E13: 200 | G13: 169 | H13: 6.2 | I13: 4.1 | J13: 25.5
C14: ДО7КЛ19 | D14: Котлета мясная, соус | E14: 60/25 | G14: 160 | H14: 11 | I14: 8 | J14: 10
C15: ДО7ЕЯ19 | D15: Рожки отварные | E15: 150 | G15: 196 | H15: 5.37 | I15: 4.25 | J15: 33.38
C16: ШО7ИЯ19 | D16: Напиток из плодов | E16: 200 | G16: 89 | H16: 0.2 | I16: 0.1 | J16: 23.5
C17: СПРЕБРЖ | D17: Хлеб пшенично -ржаной | E17: 50 | G17: 121 | H17: 5.7 | I17: 1.55 | J17: 21.57
B20: итого | F20: 64.32 | G20: =G4+G5+G6+G7+G8+G9+G12+G13+G14+G15+G16+G17 -> 1116 | H20: =H4+H5+H6+H7+H8+H9+H12+H13+H14+H15+H16+H17 -> 45 | I20: 30 | J20: 166

Sheet 13.09
A1: Школа | B1: - | E1: Отд./корп | I1: День | J1: 2021-09-13
A3: Прием пищи | B3: Раздел | C3: № рец. | D3: Блюдо | E3: Выход, г | F3: Цена | G3: Калорийность | H3: Белки | I3: Жиры | J3: Углеводы
A4: Завтрак | C4: ДО4ЕС19 | D4: Каша рисовая молочная | E4: 200 | G4: 253 | H4: 5.73 | I4: 7.73 | J4: 39.73
C5: ШО7ИЯ19 | D5: Чай с сахаром | E5: 200 | G5: 35 | H5: 0.1 | I5: 0.02 | J5: 9.9
C6: ДО5МП18 | D6: Масло сливочное порционно | E6: 8 | G6: 62 | H6: 0.64 | I6: 0.64 | J6: 5.6
C7: СПРЕБРЖ | D7: Хлеб пшенично -ржаной | E7: 30 | G7: 69 | H7: 3.28 | I7: 0.9 | J7: 12.48
A9: Завтрак 2 | F9: 57.43
A12: Обед | C12: ТК№5 | D12: Салат из свежей капусты | E12: 40 | G12: 36 | H12: 0.9 | I12: 1.8 | J12: 4.1
C13: ДО7ДГ19 | D13: Рассольник ленинградский | E13: 200 | G13: 244 | H13: 1.73 | I13: 10.67 | J13: 25.33
C14: ТК № 11 | D14: Тефтели из говядины | E14: 60/20 | G14: 196 | H14: 9.36 | I14: 12.96 | J14: 9.96
C15: ТК № 170 | D15: Гороховое пюре | E15: 150 | G15: 240 | H15: 14.6 | I15: 5.1 | J15: 33.1
C16: ШО7ИЯ19 | D16: Напиток из плодов | E16: 200 | G16: 89 | H16: 0.2 | I16: 0.1 | J16: 23.5
C17: СПРЕБРЖ | D17: Хлеб ржано - пшеничный | E17: 50 | G17: 121 | H17: 5.7 | I17: 1.55 | J17: 21.57
B20: итого | F20: 64.23 | G20: =G4+G5+G6+G7+G8+G9+G12+G13+G14+G15+G16+G17 -> 1345 | H20: =H4+H5+H6+H7+H8+H9+H12+H13+H14+H15+H16+H17 -> 42 | I20: 41 | J20: 185

Sheet 14.09
A1: Школа | B1: - | E1: Отд./корп | I1: День | J1: 2021-09-14
A3: Прием пищи | B3: Раздел | C3: № рец. | D3: Блюдо | E3: Выход, г | F3: Цена | G3: Калорийность | H3: Белки | I3: Жиры | J3: Углеводы
A4: Завтрак | C4: МО7КБКК | D4: Котлеты куриные, соус | E4: 60/25 | G4: 145 | H4: 12.08 | I4: 6.18 | J4: 10.15
C5: ДО7ЕЯ19 | D5: Макаронные изделия отварные | E5: 150 | G5: 196 | H5: 5.37 | I5: 4.25 | J5: 33.38
C6: ШО7ТЭШК | D6: Чай с молоком и сахаром | E6: 200 | G6: 75 | H6: 2 | I6: 5 | J6: 18
C7: СПРЕБРЖ | D7: Хлеб пшенично -ржаной | E7: 30 | G7: 69 | H7: 3.28 | I7: 0.9 | J7: 12.48
A9: Завтрак 2
F10: 57.43
A12: Обед | C12: ТК№5 | D12: Огурец свежий | E12: 40 | G12: 7 | H12: 0.32 | I12: 0.04 | J12: 0.76
C13: ДО7ДМ19 | D13: Суп картофельный с лапшей домашней | E13: 200 | G13: 244 | H13: 27 | I13: 9.33 | J13: 38.67
C14: ДО7КЛ19 | D14: Плов из птицы | E14: 150 | G14: 320 | H14: 14.2 | I14: 18.4 | J14: 23.7
C15: ТК№77 | D15: Кисель | E15: 200 | G15: 80 | H15: 4 | I15: 0 | J15: 25
C16: СПРЕБРЖ | D16: Хлеб пшенично -ржаной | E16: 50 | G16: 121 | H16: 5.7 | I16: 1.55 | J16: 21.57
B20: итого | F20: 64.23 | G20: =G4+G5+G6+G7+G8+G9+G12+G13+G14+G15+G16+G17 -> 1257 | H20: =H4+H5+H6+H7+H8+H9+H12+H13+H14+H15+H16+H17 -> 74 | I20: 46 | J20: 184

Sheet 15.09
A1: Школа | B1: - | E1: Отд./корп | I1: День | J1: 2021-09-15
A3: Прием пищи | B3: Раздел | C3: № рец. | D3: Блюдо | E3: Выход, г | F3: Цена | G3: Калорийность | H3: Белки | I3: Жиры | J3: Углеводы
A4: Завтрак | C4: ДО7ИС20 | D4: Запеканка из творога с киселем | E4: 100/25 | G4: 295 | H4: 18.25 | I4: 5 | J4: 23
C5: ШО7ИЯ19 | D5: Чай с сахаром | E5: 200 | G5: 35 | H5: 0.1 | I5: 0.02 | J5: 9.9
C6: СПРЕБРЖ | D6: Хлеб пшенично -ржаной | E6: 30 | G6: 69 | H6: 3.28 | I6: 0.9 | J6: 12.48
C7: ДО7ФРУКТ | D7: Фрукт (яблоко) | E7: 75 | G7: 35 | H7: 0.3 | I7: 0.3 | J7: 7.35
A9: Завтрак 2 | F9: 57.43
A12: Обед | C12: ДО7АД19 | D12: Свекла отварная | E12: 40 | G12: 14 | H12: 0.6 | I12: 0 | J12: 2.9
C13: ДО7АА19 | D13: Суп картофельный с рисовой крупой | E13: 200 | G13: 225 | H13: 1.73 | I13: 10.67 | J13: 28
C14: ДО7ТК129 | D14: Фрикадельки из птицы | E14: 50/4 | G14: 127 | H14: 7.3 | I14: 9 | J14: 4.3
C15: ДО7ЕЯ19 | D15: Рожки отварные | E15: 150 | G15: 196 | H15: 5.37 | I15: 4.25 | J15: 33.38
C16: ШО7ИЯ19 | D16: Напиток из плодов | E16: 200 | G16: 89 | H16: 0.2 | I16: 0.1 | J16: 23.5
C17: СПРЕБРЖ | D17: Хлеб ржано - пшеничный | E17: 50 | G17: 121 | H17: 5.7 | I17: 1.55 | J17: 21.57
B20: итого | F20: 64.23 | G20: =G4+G5+G6+G7+G8+G9+G12+G13+G14+G15+G16+G17 -> 1206 | H20: =H4+H5+H6+H7+H8+H9+H12+H13+H14+H15+H16+H17 -> 43 | I20: 32 | J20: 166

Sheet 16.09
A1: Школа | B1: - | E1: Отд./корп | I1: День | J1: 2021-09-16
A3: Прием пищи | B3: Раздел | C3: № рец. | D3: Блюдо | E3: Выход, г | F3: Цена | G3: Калорийность | H3: Белки | I3: Жиры | J3: Углеводы
A4: Завтрак | C4: ДО7КЛ19 | D4: Плов из птицы | E4: 25/125 | G4: 384 | H4: 17.04 | I4: 22.08 | J4: 28.44
C5: ШО7ТЭШК | D5: Какао с молоком | E5: 200 | G5: 69 | H5: 2.4 | I5: 2.3 | J5: 10.2
C6: СПРЕБРЖ | D6: Хлеб пшенично -ржаной | E6: 30 | G6: 69 | H6: 3.28 | I6: 0.9 | J6: 12.48
C7: 155.02 | D7: Йогурт | E7: 100 | G7: 120 | H7: 3 | I7: 3 | J7: 5
A9: Завтрак 2 | F9: 57.43
A12: Обед | C12: ТК №19 | D12: Салат из моркови | E12: 40 | G12: 40 | H12: 0.4 | I12: 1.8 | J12: 5.8
C13: ДО7ДИ19 | D13: Борщ из св. капусты с картофелем | E13: 200 | G13: 252 | H13: 1.33 | I13: 12 | J13: 38.53
C14: ТК№97 | D14: Гуляш из говядины | E14: 25/25 | G14: 99.5 | H14: 7.05 | I14: 7.1 | J14: 1.6
C15: ТК 176 | D15: Каша перловая рассыпчатая | E15: 150 | G15: 180 | H15: 4.6 | I15: 3.6 | J15: 31.7
C16: ШО7ИЯ19 | D16: Чай с сахаром | E16: 200 | G16: 35 | H16: 0.1 | I16: 0.02 | J16: 9.9
C17: СПРЕБРЖ | D17: Хлеб ржано - пшеничный | E17: 50 | G17: 121 | H17: 5.7 | I17: 1.55 | J17: 21.57
B20: итого | F20: 64.23 | G20: =G4+G5+G6+G7+G8+G9+G12+G13+G14+G15+G16+G17 -> 1370 | H20: =H4+H5+H6+H7+H8+H9+H12+H13+H14+H15+H16+H17 -> 45 | I20: 54 | J20: 165

Sheet 17.09
A1: Школа | B1: МБОУ СОШ с.Васильевка | E1: Отд./корп | I1: День | J1: 2021-09-17
A3: Прием пищи | B3: Раздел | C3: № рец. | D3: Блюдо | E3: Выход, г | F3: Цена | G3: Калорийность | H3: Белки | I3: Жиры | J3: Углеводы
A4: Завтрак | C4: ТК № 11 | D4: Тефтели из говядины | E4: 60/20 | G4: 196 | H4: 9.36 | I4: 12.96 | J4: 9.96
C5: ДО7ЕЯ19 | D5: Макаронные изделия отварные | E5: 150 | G5: 196 | H5: 5.37 | I5: 4.25 | J5: 33.38
C6: ШО7ИЯ19 | D6: Чай с сахаром | E6: 200 | G6: 35 | H6: 0.1 | I6: 0.02 | J6: 9.9
C7: СПРЕБРЖ | D7: Хлеб пшенично -ржаной | E7: 30 | G7: 69 | H7: 3.28 | I7: 0.9 | J7: 12.48
A9: Завтрак 2 | F9: 57.43
A12: Обед | C12: ТК№45 | D12: Салат луковый | E12: 40 | G12: 46 | H12: 0.6 | I12: 3.6 | J12: 2.8
C13: ДО7ДН19 | D13: Суп картофельный с клецками | E13: 200 | G13: 265 | H13: 1.33 | I13: 33.33 | J13: 37.33
C14: ДО7БИ19 | D14: Биточки рыбные | E14: 60/25 | G14: 134 | H14: 9.72 | I14: 6.84 | J14: 8.28
C15: ДО7ЕВ19 | D15: Картофельное пюре | E15: 150 | G15: 136 | H15: 3 | I15: 4.63 | J15: 20.13
C16: ШО7ИЯ19 | D16: Напиток из плодов | E16: 200 | G16: 89 | H16: 0.2 | I16: 0.1 | J16: 23.5
C17: СПРЕБРЖ | D17: Хлеб ржано - пшеничный | E17: 50 | G17: 121 | H17: 5.7 | I17: 1.55 | J17: 21.57
B20: итого | F20: 64.23 | G20: =G4+G5+G6+G7+G8+G9+G12+G13+G14+G15+G16+G17 -> 1287 | H20: =H4+H5+H6+H7+H8+H9+H12+H13+H14+H15+H16+H17 -> 39 | I20: 68 | J20: 179

Sheet 20.09
A1: Школа | B1: МБОУ СОШ с.Васильевка | E1: Отд./корп | I1: День | J1: 2021-09-20
A3: Прием пищи | B3: Раздел | C3: № рец. | D3: Блюдо | E3: Выход, г | F3: Цена | G3: Калорийность | H3: Белки | I3: Жиры | J3: Углеводы
A4: Завтрак | C4: ДО7ИС20 | D4: Сыр порционно | E4: 10 | G4: 40.8 | H4: 3 | I4: 1 | J4: 1.6
C5: ТК № 302 | D5: Каша "Дружба" | E5: 200 | G5: 232 | H5: 6.27 | I5: 8.13 | J5: 33.47
C6: ДО5МП18 | D6: Чай с сахаром | E6: 200 | G6: 35 | H6: 0.1 | I6: 0.02 | J6: 9.9
C7: СПРЕБРЖ | D7: Хлеб пшенично -ржаной | E7: 30 | G7: 69 | H7: 3.28 | I7: 0.9 | J7: 12.48
D8: Фрукт (яблоко) | E8: 75 | G8: 35 | H8: 0.3 | I8: 0.3 | J8: 7.35
A9: Завтрак 2
F11: 57.43 | G11: =SUM(G4:G10) -> 412 | H11: =SUM(H4:H10) -> 13 | I11: 10 | J11: 65
A12: Обед | C12: ДО7АД19 | D12: Салат из моркови | E12: 40 | G12: 40 | H12: 0.4 | I12: 1.8 | J12: 5.8
C13: ДО7АА19 | D13: Суп картоф. с пшенной крупой | E13: 200 | G13: 244 | H13: 1.73 | I13: 10.67 | J13: 25.33
C14: ДО7ЕВ19 | D14: Каша гречневая рассыпчатая | E14: 150 | G14: 179 | H14: 6.72 | I14: 4.32 | J14: 27.68
C15: ТК№97 | D15: Котлеты куриные, соус | E15: 60/25 | G15: 145 | H15: 12.08 | I15: 6.18 | J15: 10.15
C16: ТК № 295 | D16: Чай с сахаром | E16: 200 | G16: 35 | H16: 0.1 | I16: 0.02 | J16: 9.9
C17: СПРЕБРЖ | D17: Хлеб пшенично -ржаной | E17: 50 | G17: 121 | H17: 5.7 | I17: 1.55 | J17: 21.57
G18: =SUM(G12:G17) -> 764 | H18: =SUM(H12:H17) -> 27 | I18: 25 | J18: 100
B20: итого | F20: 64.23 | G20: =G11+G18 -> 1176 | H20: =H11+H18 -> 40 | I20: 35 | J20: 165

Sheet 21.09
A1: Школа | B1: МБОУ СОШ с.Васильевка | E1: Отд./корп | I1: День | J1: 2021-09-21
A3: Прием пищи | B3: Раздел | C3: № рец. | D3: Блюдо | E3: Выход, г | F3: Цена | G3: Калорийность | H3: Белки | I3: Жиры | J3: Углеводы
A4: Завтрак | C4: ТК№143 | D4: Птица тушеная с овощами | E4: 30/150 | G4: 253.8 | H4: 17.46 | I4: 11.61 | J4: 18.27
C5: ДО5МП18 | D5: Масло сливочное порционно | E5: 8 | G5: 62 | H5: 0.64 | I5: 0.64 | J5: 5.6
C6: ШО7ТЭШК | D6: Чай с молоком и сахаром | E6: 200 | G6: 75 | H6: 2 | I6: 5 | J6: 18
C7: СПРЕБРЖ | D7: Хлеб пшенично -ржаной | E7: 30 | G7: 69 | H7: 3.28 | I7: 0.9 | J7: 12.48
A9: Завтрак 2
F10: 57.43 | G10: =SUM(G4:G9) -> 460 | H10: =SUM(H4:H9) -> 23 | I10: 18 | J10: 54
A12: Обед | C12: ТК № 24 | D12: Салат из свеклы | E12: 40 | G12: 42 | H12: 0.5 | I12: 2.9 | J12: 3.2
C13: ДО7СПЕР | D13: Суп рыбный | E13: 200 | G13: 167 | H13: 6.32 | I13: 16 | J13: 22.01
C14: ДО7ЕЯ19 | D14: Макаронные изделия отварные | E14: 150 | G14: 196 | H14: 5.37 | I14: 4.25 | J14: 33.38
C15: ТК № 11 | D15: Тефтели из говядины | E15: 60/20 | G15: 196 | H15: 9.36 | I15: 12.96 | J15: 9.96
C16: ТК№77 | D16: Кисель | E16: 200 | G16: 80 | H16: 4 | I16: 0 | J16: 25
C17: СПРЕБРЖ | D17: Хлеб пшенично -ржаной | E17: 50 | G17: 121 | H17: 5.7 | I17: 1.55 | J17: 21.57
B20: итого | F20: 64.23 | G20: =G4+G5+G6+G7+G8+G12+G13+G14+G15+G16+G17 -> 1262 | H20: =H4+H5+H6+H7+H8+H12+H13+H14+H15+H16+H17 -> 55 | I20: 56 | J20: 169

Sheet 22.09
A1: Школа | B1: МБОУ СОШ с.Васильевка | E1: Отд./корп | I1: День | J1: 2021-09-22
A3: Прием пищи | B3: Раздел | C3: № рец. | D3: Блюдо | E3: Выход, г | F3: Цена | G3: Калорийность | H3: Белки | I3: Жиры | J3: Углеводы
A4: Завтрак | C4: ТК№83 | D4: Каша гречневая рассыпчатая | E4: 150 | G4: 288 | H4: 10.4 | I4: 6.8 | J4: 45.4
C5: ТК №97 | D5: Гуляш из говядины | E5: 25/25 | G5: 99.5 | H5: 7.05 | I5: 7.1 | J5: 1.6
C6: ТК№304 | D6: Кофейный напиток на молоке | E6: 200 | G6: 94 | H6: 2.9 | I6: 2.8 | J6: 14.9
C7: СПРЕБРЖ | D7: Хлеб пшенично -ржаной | E7: 30 | G7: 69 | H7: 3.28 | I7: 0.9 | J7: 12.48
C8: **
A9: Завтрак 2
F10: 57.43
A12: Обед | C12: ТК№5 | D12: Салат из свежей капусты | E12: 40 | G12: 36 | H12: 0.9 | I12: 1.8 | J12: 4.1
C13: ДО7ДГ19 | D13: Рассольник ленинградский | E13: 200 | G13: 244 | H13: 1.73 | I13: 10.67 | J13: 25.13
C14: ДО7КБКК | D14: Фрикадельки из птицы в томат.соусе | E14: 60/25 | G14: 148 | H14: 8.76 | I14: 10.29 | J14: 5.14
C15: ТК № 170 | D15: Гороховое пюре | E15: 150 | G15: 240 | H15: 14.6 | I15: 5.1 | J15: 33.1
C16: ШО7ИЯ19 | D16: Напиток из плодов | E16: 200 | G16: 89 | H16: 0.2 | I16: 0.1 | J16: 23.5
C17: СПРЕБРЖ | D17: Хлеб пшенично -ржаной | E17: 50 | G17: 121 | H17: 5.7 | I17: 1.55 | J17: 21.57
B20: итого | F20: 64.23 | G20: =G4+G5+G6+G7+G8+G12+G13+G14+G15+G16+G17 -> 1429 | H20: =H4+H5+H6+H7+H8+H12+H13+H14+H15+H16+H17 -> 56 | I20: 47 | J20: 187

Sheet 23.09
A1: Школа | B1: МБОУ СОШ с.Васильевка | E1: Отд./корп | I1: День | J1: 2021-09-23
A3: Прием пищи | B3: Раздел | C3: № рец. | D3: Блюдо | E3: Выход, г | F3: Цена | G3: Калорийность | H3: Белки | I3: Жиры | J3: Углеводы
A4: Завтрак | C4: ТК № 217 | D4: Макароны, запеченные с сыром | E4: 150 | G4: 236 | H4: 7.3 | I4: 11.8 | J4: 24.5
C5: ТК№302 | D5: Чай с лимоном | E5: 200 | G5: 37 | H5: 0.1 | I5: 0 | J5: 9.3
C6: ДО5МП18 | D6: Масло сливочное порционно | E6: 8 | G6: 62 | H6: 0.64 | I6: 0.64 | J6: 5.6
C7: СПРЕБРЖ | D7: Хлеб ржано - пшеничный витаминный | E7: 30 | G7: 69 | H7: 3.28 | I7: 0.9 | J7: 12.48
C8: 155.02 | D8: Йогурт | E8: 100 | G8: 120 | H8: 3 | I8: 3 | J8: 5
A9: Завтрак 2
F11: 57.43
A12: Обед | C12: ДО7АД19 | D12: Свекла отварная | E12: 40 | G12: 14 | H12: 0.6 | I12: 0 | J12: 2.9
C13: ДО7ДА19 | D13: Щи из св. капусты с картофелем | E13: 200 | G13: 244 | H13: 1.47 | I13: 9.33 | J13: 37.33
C14: ДО7КЛ19 | D14: Плов из птицы | E14: 25/125 | G14: 320 | H14: 14.2 | I14: 18.4 | J14: 23.7
C15: ШО7ИЯ19 | D15: Напиток из плодов | E15: 200 | G15: 89 | H15: 0.2 | I15: 0.1 | J15: 23.5
C16: СПРЕБРЖ | D16: Хлеб ржано - пшеничный витаминный | E16: 50 | G16: 121 | H16: 5.7 | I16: 1.55 | J16: 21.57
B20: итого | F20: 64.23 | G20: =G4+G5+G6+G7+G8+G12+G13+G14+G15+G16+G17 -> 1312 | H20: =H4+H5+H6+H7+H8+H12+H13+H14+H15+H16+H17 -> 36 | I20: 46 | J20: 166

Sheet 24.09
A1: Школа | B1: МБОУ СОШ с.Васильевка | E1: Отд./корп | I1: День | J1: 2021-09-24
A3: Прием пищи | B3: Раздел | C3: № рец. | D3: Блюдо | E3: Выход, г | F3: Цена | G3: Калорийность | H3: Белки | I3: Жиры | J3: Углеводы
A4: Завтрак | C4: ДО7БИ19 | D4: Биточки рыбные, соус | E4: 60/25 | G4: 134 | H4: 9.72 | I4: 6.84 | J4: 8.28
C5: ДО7ЕВ19 | D5: Картофельное пюре | E5: 150 | G5: 136 | H5: 3 | I5: 4.63 | J5: 20.13
C6: ШО7ИЯ19 | D6: Чай с сахаром | E6: 200 | G6: 35 | H6: 0.1 | I6: 0.02 | J6: 9.9
C7: СПРЕБРЖ | D7: Хлеб пшенично -ржаной | E7: 30 | G7: 69 | H7: 3.28 | I7: 0.9 | J7: 12.48
A9: Завтрак 2
F10: 57.43
A12: Обед | D12: Огурец свежий/соленый (термообработка) | E12: 40 | G12: 7 | H12: 0.32 | I12: 0.04 | J12: 0.76
C13: ДО7ДЛ19 | D13: Суп картофельный с бобовыми | E13: 200 | G13: 169 | H13: 6.2 | I13: 4.1 | J13: 25.5
C14: ДО7КЛ19 | D14: Котлета мясная, соус | E14: 60/25 | G14: 160 | H14: 11 | I14: 8 | J14: 10
C15: ДО7ЕЯ19 | D15: Рожки отварные | E15: 150 | G15: 196 | H15: 5.37 | I15: 4.25 | J15: 33.38
C16: ШО7ИЯ19 | D16: Напиток из плодов | E16: 200 | G16: 89 | H16: 0.2 | I16: 0.1 | J16: 23.5
C17: СПРЕБРЖ | D17: Хлеб пшенично -ржаной | E17: 50 | G17: 121 | H17: 5.7 | I17: 1.55 | J17: 21.57
B20: итого | F20: 64.32 | G20: =G4+G5+G6+G7+G8+G9+G12+G13+G14+G15+G16+G17 -> 1116 | H20: =H4+H5+H6+H7+H8+H9+H12+H13+H14+H15+H16+H17 -> 45 | I20: 30 | J20: 166

Sheet 27.09
A1: Школа | B1: МБОУ СОШ с.Васильевка | E1: Отд./корп | I1: День | J1: 2021-09-27
A3: Прием пищи | B3: Раздел | C3: № рец. | D3: Блюдо | E3: Выход, г | F3: Цена | G3: Калорийность | H3: Белки | I3: Жиры | J3: Углеводы
A4: Завтрак | C4: ДО4ЕС19 | D4: Каша рисовая молочная | E4: 200 | G4: 253 | H4: 5.73 | I4: 7.73 | J4: 39.73
C5: ШО7ИЯ19 | D5: Чай с сахаром | E5: 200 | G5: 35 | H5: 0.1 | I5: 0.02 | J5: 9.9
C6: ДО5МП18 | D6: Масло сливочное порционно | E6: 8 | G6: 62 | H6: 0.64 | I6: 0.64 | J6: 5.6
C7: СПРЕБРЖ | D7: Хлеб пшенично -ржаной | E7: 30 | G7: 69 | H7: 3.28 | I7: 0.9 | J7: 12.48
A9: Завтрак 2 | F9: 57.43
A12: Обед | C12: ТК№5 | D12: Салат из свежей капусты | E12: 40 | G12: 36 | H12: 0.9 | I12: 1.8 | J12: 4.1
C13: ДО7ДГ19 | D13: Рассольник ленинградский | E13: 200 | G13: 244 | H13: 1.73 | I13: 10.67 | J13: 25.33
C14: ТК № 11 | D14: Тефтели из говядины | E14: 60/20 | G14: 196 | H14: 9.36 | I14: 12.96 | J14: 9.96
C15: ТК № 170 | D15: Гороховое пюре | E15: 150 | G15: 240 | H15: 14.6 | I15: 5.1 | J15: 33.1
C16: ШО7ИЯ19 | D16: Напиток из плодов | E16: 200 | G16: 89 | H16: 0.2 | I16: 0.1 | J16: 23.5
C17: СПРЕБРЖ | D17: Хлеб ржано - пшеничный | E17: 50 | G17: 121 | H17: 5.7 | I17: 1.55 | J17: 21.57
B20: итого | F20: 64.23 | G20: =G4+G5+G6+G7+G8+G9+G12+G13+G14+G15+G16+G17 -> 1345 | H20: =H4+H5+H6+H7+H8+H9+H12+H13+H14+H15+H16+H17 -> 42 | I20: 41 | J20: 185

Sheet 28.09
A1: Школа | B1: МБОУ СОШ с.Васильевка | E1: Отд./корп | I1: День | J1: 2021-09-28
A3: Прием пищи | B3: Раздел | C3: № рец. | D3: Блюдо | E3: Выход, г | F3: Цена | G3: Калорийность | H3: Белки | I3: Жиры | J3: Углеводы
A4: Завтрак | C4: МО7КБКК | D4: Котлеты куриные, соус | E4: 60/25 | G4: 145 | H4: 12.08 | I4: 6.18 | J4: 10.15
C5: ДО7ЕЯ19 | D5: Макаронные изделия отварные | E5: 150 | G5: 196 | H5: 5.37 | I5: 4.25 | J5: 33.38
C6: ШО7ТЭШК | D6: Чай с молоком и сахаром | E6: 200 | G6: 75 | H6: 2 | I6: 5 | J6: 18
C7: СПРЕБРЖ | D7: Хлеб пшенично -ржаной | E7: 30 | G7: 69 | H7: 3.28 | I7: 0.9 | J7: 12.48
A9: Завтрак 2
F10: 57.43
A12: Обед | C12: ТК№5 | D12: Огурец свежий | E12: 40 | G12: 7 | H12: 0.32 | I12: 0.04 | J12: 0.76
C13: ДО7ДМ19 | D13: Суп картофельный с лапшей домашней | E13: 200 | G13: 244 | H13: 27 | I13: 9.33 | J13: 38.67
C14: ДО7КЛ19 | D14: Плов из птицы | E14: 150 | G14: 320 | H14: 14.2 | I14: 18.4 | J14: 23.7
C15: ТК№77 | D15: Кисель | E15: 200 | G15: 80 | H15: 4 | I15: 0 | J15: 25
C16: СПРЕБРЖ | D16: Хлеб пшенично -ржаной | E16: 50 | G16: 121 | H16: 5.7 | I16: 1.55 | J16: 21.57
B20: итого | F20: 64.23 | G20: =G4+G5+G6+G7+G8+G9+G12+G13+G14+G15+G16+G17 -> 1257 | H20: =H4+H5+H6+H7+H8+H9+H12+H13+H14+H15+H16+H17 -> 74 | I20: 46 | J20: 184

Sheet 29.09
A1: Школа | B1: МБОУ СОШ с.Васильевка | E1: Отд./корп | I1: День | J1: 2021-09-29
A3: Прием пищи | B3: Раздел | C3: № рец. | D3: Блюдо | E3: Выход, г | F3: Цена | G3: Калорийность | H3: Белки | I3: Жиры | J3: Углеводы
A4: Завтрак | C4: ДО7ИС20 | D4: Запеканка из творога с киселем | E4: 100/25 | G4: 295 | H4: 18.25 | I4: 5 | J4: 23
C5: ШО7ИЯ19 | D5: Чай с сахаром | E5: 200 | G5: 35 | H5: 0.1 | I5: 0.02 | J5: 9.9
C6: СПРЕБРЖ | D6: Хлеб пшенично -ржаной | E6: 30 | G6: 69 | H6: 3.28 | I6: 0.9 | J6: 12.48
C7: ДО7ФРУКТ | D7: Фрукт (яблоко) | E7: 75 | G7: 35 | H7: 0.3 | I7: 0.3 | J7: 7.35
A9: Завтрак 2 | F9: 57.43
A12: Обед | C12: ДО7АД19 | D12: Свекла отварная | E12: 40 | G12: 14 | H12: 0.6 | I12: 0 | J12: 2.9
C13: ДО7АА19 | D13: Суп картофельный с рисовой крупой | E13: 200 | G13: 225 | H13: 1.73 | I13: 10.67 | J13: 28
C14: ДО7ТК129 | D14: Фрикадельки из птицы | E14: 50/4 | G14: 127 | H14: 7.3 | I14: 9 | J14: 4.3
C15: ДО7ЕЯ19 | D15: Рожки отварные | E15: 150 | G15: 196 | H15: 5.37 | I15: 4.25 | J15: 33.38
C16: ШО7ИЯ19 | D16: Напиток из плодов | E16: 200 | G16: 89 | H16: 0.2 | I16: 0.1 | J16: 23.5
C17: СПРЕБРЖ | D17: Хлеб ржано - пшеничный | E17: 50 | G17: 121 | H17: 5.7 | I17: 1.55 | J17: 21.57
B20: итого | F20: 64.23 | G20: =G4+G5+G6+G7+G8+G9+G12+G13+G14+G15+G16+G17 -> 1206 | H20: =H4+H5+H6+H7+H8+H9+H12+H13+H14+H15+H16+H17 -> 43 | I20: 32 | J20: 166

Sheet 30.09
A1: Школа | B1: МБОУ СОШ с.Васильевка | E1: Отд./корп | I1: День | J1: 2021-09-30
A3: Прием пищи | B3: Раздел | C3: № рец. | D3: Блюдо | E3: Выход, г | F3: Цена | G3: Калорийность | H3: Белки | I3: Жиры | J3: Углеводы
A4: Завтрак | C4: ДО7КЛ19 | D4: Плов из птицы | E4: 25/125 | G4: 384 | H4: 17.04 | I4: 22.08 | J4: 28.44
C5: ШО7ТЭШК | D5: Какао с молоком | E5: 200 | G5: 69 | H5: 2.4 | I5: 2.3 | J5: 10.2
C6: СПРЕБРЖ | D6: Хлеб пшенично -ржаной | E6: 30 | G6: 69 | H6: 3.28 | I6: 0.9 | J6: 12.48
C7: 155.02 | D7: Йогурт | E7: 100 | G7: 120 | H7: 3 | I7: 3 | J7: 5
A9: Завтрак 2 | F9: 57.43
A12: Обед | C12: ТК №19 | D12: Салат из моркови | E12: 40 | G12: 40 | H12: 0.4 | I12: 1.8 | J12: 5.8
C13: ДО7ДИ19 | D13: Борщ из св. капусты с картофелем | E13: 200 | G13: 252 | H13: 1.33 | I13: 12 | J13: 38.53
C14: ТК№97 | D14: Гуляш из говядины | E14: 25/25 | G14: 99.5 | H14: 7.05 | I14: 7.1 | J14: 1.6
C15: ТК 176 | D15: Каша перловая рассыпчатая | E15: 150 | G15: 180 | H15: 4.6 | I15: 3.6 | J15: 31.7
C16: ШО7ИЯ19 | D16: Чай с сахаром | E16: 200 | G16: 35 | H16: 0.1 | I16: 0.02 | J16: 9.9
C17: СПРЕБРЖ | D17: Хлеб ржано - пшеничный | E17: 50 | G17: 121 | H17: 5.7 | I17: 1.55 | J17: 21.57
B20: итого | F20: 64.23 | G20: =G4+G5+G6+G7+G8+G9+G12+G13+G14+G15+G16+G17 -> 1370 | H20: =H4+H5+H6+H7+H8+H9+H12+H13+H14+H15+H16+H17 -> 45 | I20: 54 | J20: 165
